fUSD/lending_fUSD_20240517
["ID","MTS","AMOUNT","RATE_DAILY","PERIOD"]
[327228301,1715904675557,-632.41,0.00011079,2]
[327228302,1715904675566,-632.41,0.00011079,2]
[327228303,1715904675575,-632.41,0.00011079,2]
[327228304,1715904675585,-632.41,0.00011079,2]
[327228305,1715904675594,-505.96,0.00011079,2]
[327228306,1715904675604,-505.96,0.00011079,2]
[327228307,1715904675613,-505.96,0.00011079,2]
[327228308,1715904675623,-505.96,0.00011079,2]
[327228309,1715904675632,-505.96,0.00011079,2]
[327228310,1715904675642,-500.0,0.00011079,2]
[327228311,1715904675651,-1643.75,0.00011079,2]
[327228312,1715904675660,-1643.75,0.00011079,2]
[327228313,1715904675669,-500.0,0.00011079,2]
[327228314,1715904675678,-1643.75,0.00011079,2]
[327228315,1715904675689,-500.0,0.00011079,2]
[327228316,1715904675699,-1643.75,0.00011079,2]
[327228317,1715904675708,-500.0,0.00011079,2]
[327228318,1715904675717,-1643.75,0.00011079,2]
[327228319,1715904675727,-641.08,0.00011079,2]
[327228320,1715904675736,-1643.75,0.00011079,2]
[327228321,1715904675746,-1643.75,0.00011079,2]
[327228322,1715904675756,-1643.75,0.00011079,2]
[327228323,1715904675766,-1643.75,0.00011079,2]
[327228324,1715904675775,-1643.75,0.00011079,2]
[327228325,1715904675786,-1643.96186487,0.00011079,2]
[327228326,1715904675795,-891.94,0.00011079,2]
[327228327,1715904675805,-891.94,0.00011079,2]
[327228328,1715904675814,-891.94,0.00011079,2]
[327228329,1715904675823,-891.94,0.00011079,2]
[327228330,1715904675833,-891.94,0.00011079,2]
[327228331,1715904675844,-1749.16,0.00011079,2]
[327228332,1715904675853,-1749.16,0.00011079,2]
[327228333,1715904675863,-1749.16,0.00011079,2]
[327228334,1715904675872,-1749.16,0.00011079,2]
[327228335,1715904675881,-1749.16,0.00011079,2]
[327228336,1715904675890,-1749.16,0.00011079,2]
[327228337,1715904675900,-1749.16,0.00011079,2]
[327228338,1715904675909,-1749.16,0.00011079,2]
[327228339,1715904675918,-1749.16,0.00011079,2]
[327228340,1715904675927,-1749.16,0.00011079,2]
[327228341,1715904675936,-1749.29,0.00011079,2]
[327228342,1715904675945,-503.69,0.00011079,2]
[327228343,1715904675955,-503.69,0.00011079,2]
[327228344,1715904675964,-503.69,0.00011079,2]
[327228345,1715904675973,-503.69,0.00011079,2]
[327228346,1715904675982,-503.69,0.00011079,2]
[327228347,1715904675991,-500.0,0.00011079,2]
[327228348,1715904676000,-500.0,0.00011079,2]
[327228349,1715904676010,-500.0,0.00011079,2]
[327228350,1715904676019,-500.0,0.00011079,2]
[327228351,1715904676028,-500.0,0.00011079,2]
[327228352,1715904676037,-500.0,0.00011079,2]
[327228353,1715904676046,-548.12658641,0.00011079,2]
[327228354,1715904676055,-1563.4,0.00011079,2]
[327228355,1715904676065,-1563.4,0.00011079,2]
[327228356,1715904676074,-1563.4,0.00011079,2]
[327228357,1715904676083,-1563.4,0.00011079,2]
[327228358,1715904676092,-1563.4,0.00011079,2]
[327228359,1715904676102,-1563.4,0.00011079,2]
[327228360,1715904676112,-1563.4,0.00011079,2]
[327228361,1715904676121,-1563.4,0.00011079,2]
[327228362,1715904676130,-1563.4,0.00011079,2]
[327228363,1715904676139,-1563.4,0.00011079,2]
[327228364,1715904676148,-1563.4336842,0.00011079,2]
[327228365,1715904676157,-1942.94,0.00011079,2]
[327228366,1715904676166,-1169.583249,0.00011079,2]
[327228367,1715904676175,-1942.94,0.00011079,2]
[327228368,1715904676184,-1942.94,0.00011079,2]
[327228369,1715904676193,-1942.94,0.00011079,2]
[327228370,1715904676201,-1942.94,0.00011079,2]
[327228371,1715904676210,-1942.94,0.00011079,2]
[327228372,1715904676219,-1942.94,0.00011079,2]
[327228373,1715904676229,-1942.94,0.00011079,2]
[327228374,1715904676238,-500.0,0.00011079,2]
[327228375,1715904676247,-500.0,0.00011079,2]
[327228376,1715904676256,-1942.94,0.00011079,2]
[327228377,1715904676266,-500.0,0.00011079,2]
[327228378,1715904676276,-1942.94,0.00011079,2]
[327228379,1715904676289,-500.0,0.00011079,2]
[327228380,1715904676298,-1943.0557564,0.00011079,2]
[327228381,1715904676308,-1169.583249,0.00011079,2]
[327228382,1715904676317,-500.0,0.00011079,2]
[327228383,1715904676326,-1197.84,0.00011079,2]
[327228384,1715904676336,-500.0,0.00011079,2]
[327228385,1715904676346,-1197.84,0.00011079,2]
[327228386,1715904676357,-500.0,0.00011079,2]
[327228387,1715904676366,-1197.84,0.00011079,2]
[327228388,1715904676375,-500.0,0.00011079,2]
[327228389,1715904676384,-1197.84,0.00011079,2]
[327228390,1715904676393,-500.0,0.00011079,2]
[327228391,1715904676402,-536.36410942,0.00011079,2]
[327228392,1715904676411,-1197.84,0.00011079,2]
[327228393,1715904676420,-1893.0,0.00011079,2]
[327228394,1715904676430,-1893.0,0.00011079,2]
[327228395,1715904676439,-1893.0,0.00011079,2]
[327228396,1715904676448,-1893.0,0.00011079,2]
[327228397,1715904676458,-1893.0,0.00011079,2]
[327228398,1715904676467,-1893.0,0.00011079,2]
[327228399,1715904676476,-1893.0,0.00011079,2]
[327228400,1715904676485,-1893.0,0.00011079,2]
[327228401,1715904676495,-1893.0,0.00011079,2]
[327228402,1715904676504,-1893.0,0.00011079,2]
[327228403,1715904676514,-1893.14118616,0.00011079,2]
[327228404,1715904676523,-500.0,0.00011079,2]
[327228405,1715904676533,-500.0,0.00011079,2]
[327228406,1715904676542,-500.0,0.00011079,2]
[327228407,1715904676552,-500.0,0.00011079,2]
[327228408,1715904676561,-500.0,0.00011079,2]
[327228409,1715904676571,-2224.23,0.00011079,2]
[327228410,1715904676580,-2224.23,0.00011079,2]
[327228411,1715904676590,-2224.23,0.00011079,2]
[327228412,1715904676600,-2224.23,0.00011079,2]
[327228413,1715904676610,-2224.23,0.00011079,2]
[327228414,1715904676619,-2224.23,0.00011079,2]
[327228415,1715904676628,-2224.23,0.00011079,2]
[327228416,1715904676637,-2224.23,0.00011079,2]
[327228417,1715904676647,-2224.23,0.00011079,2]
[327228418,1715904676656,-2224.23,0.00011079,2]
[327228419,1715904676665,-2224.32317521,0.00011079,2]
[327228420,1715904676674,-1122.87,0.00011079,2]
[327228421,1715904676683,-1122.87,0.00011079,2]
[327228422,1715904676692,-1122.87,0.00011079,2]
[327228423,1715904676702,-1122.87,0.00011079,2]
[327228424,1715904676711,-1122.87,0.00011079,2]
[327228425,1715904676721,-1122.87,0.00011079,2]
[327228426,1715904676730,-1122.87,0.00011079,2]
[327228427,1715904676739,-1122.87,0.00011079,2]
[327228428,1715904676748,-1122.87,0.00011079,2]
[327228429,1715904676757,-1122.87,0.00011079,2]
[327228430,1715904676766,-1123.0309059,0.00011079,2]
[327228431,1715904676775,-151.0,0.00011079,2]
[327228432,1715904676785,-1244.42,0.00011079,2]
[327228433,1715904676794,-1244.42,0.00011079,2]
[327228434,1715904676803,-1244.42,0.00011079,2]
[327228435,1715904676813,-1244.42,0.00011079,2]
[327228436,1715904676822,-1244.42,0.00011079,2]
[327228437,1715904676833,-1244.42,0.00011079,2]
[327228438,1715904676844,-1244.42,0.00011079,2]
[327228439,1715904676854,-1244.42,0.00011079,2]
[327228440,1715904676863,-1244.42,0.00011079,2]
[327228441,1715904676873,-1244.42,0.00011079,2]
[327228442,1715904676882,-1244.4444184,0.00011079,2]
[327228443,1715904676892,-565.07,0.00011079,2]
[327228444,1715904676902,-565.07,0.00011079,2]
[327228445,1715904676912,-565.07,0.00011079,2]
[327228446,1715904676922,-565.07,0.00011079,2]
[327228447,1715904676931,-565.07,0.00011079,2]
[327228448,1715904676942,-544.84,0.00011079,2]
[327228449,1715904676952,-544.84,0.00011079,2]
[327228450,1715904676961,-1156719.12033551,0.0001108,2]
[327228451,1715904676971,-151.0,0.0001108,2]
[327228452,1715904676980,-311.031152,0.0001108,2]
[327228453,1715904676990,-311.031152,0.0001108,2]
[327228454,1715904677000,-151.0,0.0001108,2]
[327228455,1715904677011,-151.0,0.0001108,2]
[327228456,1715904677021,-151.0,0.0001108,2]
[327228457,1715904677031,-281.736233,0.0001108,2]
[327228458,1715904677041,-281.736233,0.0001108,2]
[327228459,1715904677052,-151.0,0.0001108,2]
[327228460,1715904677062,-151.0,0.0001108,2]
[327228461,1715904677072,-408.177369,0.0001108,2]
[327228462,1715904677082,-152.650521,0.0001108,2]
[327228463,1715904677093,-408.177369,0.0001108,2]
[327228464,1715904677102,-151.0,0.0001108,2]
[327228465,1715904677111,-151.0,0.0001108,2]
[327228466,1715904677121,-235.078473,0.0001108,2]
[327228467,1715904677131,-151.0,0.0001108,2]
[327228468,1715904677142,-151.0,0.0001108,2]
[327228469,1715904677152,-151.0,0.0001108,2]
[327228470,1715904677164,-151.0,0.0001108,2]
[327228471,1715904677173,-151.0,0.0001108,2]
[327228472,1715904677183,-151.0,0.0001108,2]
[327228473,1715904677193,-400.65222,0.0001108,2]
[327228474,1715904677202,-400.65222,0.0001108,2]
[327228475,1715904677211,-400.65222,0.0001108,2]
[327228476,1715904677221,-400.65222,0.0001108,2]
[327228477,1715904677232,-231.09985,0.0001108,2]
[327228478,1715904677242,-231.09985,0.0001108,2]
[327228479,1715904677253,-232.293167,0.0001108,2]
[327228480,1715904677263,-231.09985,0.0001108,2]
[327228481,1715904677275,-231.09985,0.0001108,2]
[327228482,1715904677286,-151.0,0.0001108,2]
[327228483,1715904677296,-151.0,0.0001108,2]
[327228484,1715904677305,-206.076908,0.0001108,2]
[327228485,1715904677315,-206.076908,0.0001108,2]
[327228486,1715904677325,-158.952003,0.0001108,2]
[327228487,1715904677334,-206.076908,0.0001108,2]
[327228488,1715904677345,-206.076908,0.0001108,2]
[327228489,1715904677354,-151.0,0.0001108,2]
[327228490,1715904677366,-299.891693,0.0001108,2]
[327228491,1715904677376,-299.891693,0.0001108,2]
[327228492,1715904677385,-340.157102,0.0001108,2]
[327228493,1715904677395,-371.518773,0.0001108,2]
[327228494,1715904677405,-371.518773,0.0001108,2]
[327228495,1715904677416,-151.0,0.0001108,2]
[327228496,1715904677426,-340.157102,0.0001108,2]
[327228497,1715904677437,-371.518773,0.0001108,2]
[327228498,1715904677448,-371.518773,0.0001108,2]
[327228499,1715904677459,-279.171877,0.0001108,2]
[327228500,1715904677471,-151.0,0.0001108,2]
[327228501,1715904677481,-151.0,0.0001108,2]
[327228502,1715904677492,-231.20059,0.0001108,2]
[327228503,1715904677503,-151.0,0.0001108,2]
[327228504,1715904677512,-151.0,0.0001108,2]
[327228505,1715904677522,-5260.107016,0.0001108,2]
[327228506,1715904677532,-5260.107016,0.0001108,2]
[327228507,1715904677545,-151.0,0.0001108,2]
[327228508,1715904677555,-253.439729,0.0001108,2]
[327228509,1715904677565,-253.439729,0.0001108,2]
[327228510,1715904677576,-1169.583249,0.0001108,2]
[327228511,1715904677587,-1169.583249,0.0001108,2]
[327228512,1715904677597,-151.0,0.0001108,2]
[327228513,1715904677607,-478.1,0.00011126,2]
[327228514,1715904677617,-157.051709,0.00011148,2]
[327228515,1715904677629,-157.051709,0.00011148,2]
[327228516,1715904677639,-4206.34,0.00011171,2]
[327228517,1715904677649,-501.19,0.00011171,2]
[327228518,1715904677659,-2062.09,0.00011171,2]
[327228519,1715904677669,-500.0,0.00011171,2]
[327228520,1715904677681,-500.0,0.00011171,2]
[327228521,1715904677692,-632.41,0.00011171,2]
[327228522,1715904677702,-505.96,0.00011171,2]
[327228523,1715904677712,-891.94,0.00011171,2]
[327228524,1715904677722,-503.69,0.00011171,2]
[327228525,1715904677732,-1197.84,0.00011171,2]
[327228526,1715904677741,-500.0,0.00011171,2]
[327228527,1715904677751,-565.07,0.00011171,2]
[327228528,1715904677761,-159.03909377,0.00011172,2]
[327228529,1715904677770,-161.12153437,0.00011172,2]
[327228530,1715904677780,-500.0,0.00011172,2]
[327228531,1715904677790,-500.0,0.00011172,2]
[327228532,1715904677799,-500.0,0.00011172,2]
[327228533,1715904677809,-500.0,0.00011172,2]
[327228534,1715904677819,-500.0,0.00011172,2]
[327228535,1715904677829,-500.0,0.00011172,2]
[327228536,1715904677839,-500.0,0.00011172,2]
[327228537,1715904677851,-500.0,0.00011172,2]
[327228538,1715904677860,-521.19,0.00011172,2]
[327228539,1715904677870,-637.27,0.00011172,2]
[327228540,1715904677879,-500.0,0.00011172,2]
[327228541,1715904677889,-500.0,0.00011172,2]
[327228542,1715904677898,-647.28,0.00011172,2]
[327228543,1715904677908,-500.0,0.00011172,2]
[327228544,1715904677919,-500.0,0.00011172,2]
[327228545,1715904677929,-661.12,0.00011172,2]
[327228546,1715904677939,-845.42,0.00011172,2]
[327228547,1715904677949,-500.0,0.00011172,2]
[327228548,1715904677960,-500.0,0.00011172,2]
[327228549,1715904677969,-1082.09,0.00011172,2]
[327228550,1715904677979,-500.0,0.00011172,2]
[327228551,1715904677989,-500.0,0.00011172,2]
[327228552,1715904677999,-1427.85,0.00011172,2]
[327228553,1715904678009,-995.08,0.00011172,2]
[327228554,1715904678018,-528.38,0.00011172,2]
[327228555,1715904678028,-507.23,0.00011172,2]
[327228556,1715904678038,-908.45,0.00011172,2]
[327228557,1715904678047,-500.0,0.00011172,2]
[327228558,1715904678057,-637.38,0.00011172,2]
[327228559,1715904678066,-689.31,0.00011172,2]
[327228560,1715904678076,-657.31,0.00011172,2]
[327228561,1715904678085,-500.0,0.00011172,2]
[327228562,1715904678095,-500.0,0.00011172,2]
[327228563,1715904678104,-1123.95,0.00011172,2]
[327228564,1715904678114,-500.0,0.00011172,2]
[327228565,1715904678123,-500.0,0.00011172,2]
[327228566,1715904678133,-1386.6,0.00011172,2]
[327228567,1715904678143,-521.55,0.00011172,2]
[327228568,1715904678152,-566.78,0.00011172,2]
[327228569,1715904678162,-318.74,0.00011172,2]
[327228570,1715904678171,-500.0,0.00011172,2]
[327228571,1715904678180,-357.77353883,0.00011172,2]
[327228572,1715904678189,-151.0,0.00011172,2]
[327228573,1715904678199,-1097.52,0.00011172,2]
[327228574,1715904678208,-528.06,0.00011172,2]
[327228575,1715904678217,-659.51,0.00011172,2]
[327228576,1715904678227,-238.100134,0.00011172,2]
[327228577,1715904678236,-790.52,0.00011172,2]
[327228578,1715904678245,-558.16,0.00011172,2]
[327228579,1715904678255,-151.0,0.00011172,2]
[327228580,1715904678265,-151.0,0.00011172,2]
[327228581,1715904678275,-500.0,0.00011172,2]
[327228582,1715904678289,-178.92,0.00011172,2]
[327228583,1715904678298,-500.0,0.00011172,2]
[327228584,1715904678308,-151.0,0.00011172,2]
[327228585,1715904678319,-662.4,0.00011172,2]
[327228586,1715904678328,-500.0,0.00011172,2]
[327228587,1715904678338,-500.0,0.00011172,2]
[327228588,1715904678348,-537.77,0.00011172,2]
[327228589,1715904678361,-500.0,0.00011172,2]
[327228590,1715904678371,-151.0,0.00011172,2]
[327228591,1715904678381,-565.41,0.00011172,2]
[327228592,1715904678390,-500.0,0.00011172,2]
[327228593,1715904678399,-2630.07,0.00011172,2]
[327228594,1715904678410,-500.0,0.00011172,2]
[327228595,1715904678419,-743.58,0.00011172,2]
[327228596,1715904678430,-151.0,0.00011172,2]
[327228597,1715904678442,-500.0,0.00011172,2]
[327228598,1715904678452,-500.0,0.00011172,2]
[327228599,1715904678464,-546.74,0.00011172,2]
[327228600,1715904678475,-1570.45,0.00011172,2]
[327228601,1715904678485,-1761.79,0.00011172,2]
[327228602,1715904678495,-747.83,0.00011172,2]
[327228603,1715904678506,-815.21,0.00011172,2]
[327228604,1715904678515,-768.75,0.00011172,2]
[327228605,1715904678525,-1799.23,0.00011172,2]
[327228606,1715904678534,-614.68,0.00011172,2]
[327228607,1715904678543,-500.0,0.00011172,2]
[327228608,1715904678553,-715.4,0.00011172,2]
[327228609,1715904678562,-559.86,0.00011172,2]
[327228610,1715904678571,-655.48,0.00011172,2]
[327228611,1715904678580,-530.03,0.00011172,2]
[327228612,1715904678590,-500.0,0.00011172,2]
[327228613,1715904678600,-735.6,0.00011172,2]
[327228614,1715904678610,-17430.5,0.00011172,2]
[327228615,1715904678620,-762.31,0.00011172,2]
[327228616,1715904678629,-500.0,0.00011172,2]
[327228617,1715904678640,-527.26,0.00011172,2]
[327228618,1715904678650,-500.0,0.00011172,2]
[327228619,1715904678659,-500.0,0.00011172,2]
[327228620,1715904678668,-775.82,0.00011172,2]
[327228621,1715904678678,-500.0,0.00011172,2]
[327228622,1715904678687,-520.31,0.00011172,2]
[327228623,1715904678696,-500.0,0.00011172,2]
[327228624,1715904678706,-500.0,0.00011172,2]
[327228625,1715904678716,-1967.2,0.00011172,2]
[327228626,1715904678725,-681.98,0.00011172,2]
[327228627,1715904678953,-500.0,0.00011172,2]
[327228628,1715904678973,-500.0,0.00011172,2]
[327228629,1715904678984,-2351.13,0.00011172,2]
[327228630,1715904678993,-1599.53,0.00011172,2]
[327228631,1715904679002,-1703.41,0.00011172,2]
[327228632,1715904679012,-500.0,0.00011172,2]
[327228633,1715904679021,-500.0,0.00011172,2]
[327228634,1715904679030,-500.0,0.00011172,2]
[327228635,1715904679039,-500.0,0.00011172,2]
[327228636,1715904679048,-891.15,0.00011172,2]
[327228637,1715904679057,-973.78,0.00011172,2]
[327228638,1715904679066,-611.8,0.00011172,2]
[327228639,1715904679076,-918.96,0.00011172,2]
[327228640,1715904679086,-500.0,0.00011172,2]
[327228641,1715904679095,-815.39,0.00011172,2]
[327228642,1715904679105,-1299.05,0.00011172,2]
[327228643,1715904679114,-2217.31,0.00011172,2]
[327228644,1715904679124,-500.0,0.00011172,2]
[327228645,1715904679133,-824.34,0.00011172,2]
[327228646,1715904679143,-4206.34,0.00011172,2]
[327228647,1715904679151,-752.46,0.00011172,2]
[327228648,1715904679160,-500.0,0.00011172,2]
[327228649,1715904679170,-500.0,0.00011172,2]
[327228650,1715904679179,-500.0,0.00011172,2]
[327228651,1715904679188,-4692.96,0.00011172,2]
[327228652,1715904679198,-2739.75,0.00011172,2]
[327228653,1715904679207,-501.19,0.00011172,2]
[327228654,1715904679216,-500.0,0.00011172,2]
[327228655,1715904679225,-587.41,0.00011172,2]
[327228656,1715904679234,-424.17,0.00011172,2]
[327228657,1715904679243,-618.3,0.00011172,2]
[327228658,1715904679252,-2115.13,0.00011172,2]
[327228659,1715904679261,-1202.26,0.00011172,2]
[327228660,1715904679272,-5079.71,0.00011172,2]
[327228661,1715904679286,-5079.71,0.00011172,2]
[327228662,1715904679296,-500.0,0.00011172,2]
[327228663,1715904679305,-556.76,0.00011172,2]
[327228664,1715904679318,-500.0,0.00011172,2]
[327228665,1715904679327,-500.0,0.00011172,2]
[327228666,1715904679336,-3035.17,0.00011172,2]
[327228667,1715904679346,-1941.35,0.00011172,2]
[327228668,1715904679358,-20127.94,0.00011172,2]
[327228669,1715904679367,-2469.42,0.00011172,2]
[327228670,1715904679376,-11260.35,0.00011172,2]
[327228671,1715904679385,-1363.06,0.00011172,2]
[327228672,1715904679394,-1004.67,0.00011172,2]
[327228673,1715904679403,-1773.38,0.00011172,2]
[327228674,1715904679414,-1773.38,0.00011172,2]
[327228675,1715904679424,-2062.09,0.00011172,2]
[327228676,1715904679434,-500.0,0.00011172,2]
[327228677,1715904679443,-500.0,0.00011172,2]
[327228678,1715904679452,-1645.85,0.00011172,2]
[327228679,1715904679461,-12891.66,0.00011172,2]
[327228680,1715904679470,-990.35,0.00011172,2]
[327228681,1715904679480,-1615.88,0.00011172,2]
[327228682,1715904679489,-303.44,0.00011172,2]
[327228683,1715904679499,-752.39,0.00011172,2]
[327228684,1715904679508,-500.0,0.00011172,2]
[327228685,1715904679518,-500.0,0.00011172,2]
[327228686,1715904679528,-500.0,0.00011172,2]
[327228687,1715904679539,-502.09,0.00011172,2]
[327228688,1715904679549,-1831.98,0.00011172,2]
[327228689,1715904679560,-4074.46,0.00011172,2]
[327228690,1715904679570,-500.0,0.00011172,2]
[327228691,1715904679580,-2529.74,0.00011172,2]
[327228692,1715904679590,-538.17,0.00011172,2]
[327228693,1715904679601,-3836.13,0.00011172,2]
[327228694,1715904679610,-3836.13,0.00011172,2]
[327228695,1715904679619,-500.0,0.00011172,2]
[327228696,1715904679630,-500.0,0.00011172,2]
[327228697,1715904679640,-500.0,0.00011172,2]
[327228698,1715904679649,-500.0,0.00011172,2]
[327228699,1715904679660,-6262.71,0.00011172,2]
[327228700,1715904679670,-509.47,0.00011172,2]
[327228701,1715904679681,-1703.91,0.00011172,2]
[327228702,1715904679691,-516.75,0.00011172,2]
[327228703,1715904679701,-500.0,0.00011172,2]
[327228704,1715904679711,-9312.62,0.00011172,2]
[327228705,1715904679721,-757.86,0.00011172,2]
[327228706,1715904679731,-500.0,0.00011172,2]
[327228707,1715904679742,-283.52392966,0.00011172,2]
[327228708,1715904679753,-500.0,0.00011172,2]
[327228709,1715904679764,-3915.77,0.00011172,2]
[327228710,1715904679774,-500.0,0.00011172,2]
[327228711,1715904679784,-695.09,0.00011172,2]
[327228712,1715904679794,-500.0,0.00011172,2]
[327228713,1715904679804,-1199.7,0.00011172,2]
[327228714,1715904679813,-1921.67,0.00011172,2]
[327228715,1715904679825,-500.0,0.00011172,2]
[327228716,1715904679834,-632.41,0.00011172,2]
[327228717,1715904679844,-500.0,0.00011172,2]
[327228718,1715904679853,-500.0,0.00011172,2]
[327228719,1715904679863,-549.08,0.00011172,2]
[327228720,1715904679872,-549.08,0.00011172,2]
[327228721,1715904679882,-962.41,0.00011172,2]
[327228722,1715904679891,-500.0,0.00011172,2]
[327228723,1715904679902,-634.34,0.00011172,2]
[327228724,1715904679912,-505.96,0.00011172,2]
[327228725,1715904679923,-2730.67,0.00011172,2]
[327228726,1715904679932,-7815.15,0.00011172,2]
[327228727,1715904679942,-500.0,0.00011172,2]
[327228728,1715904679951,-967.47,0.00011172,2]
[327228729,1715904679961,-967.47,0.00011172,2]
[327228730,1715904679970,-891.94,0.00011172,2]
[327228731,1715904679980,-15488.56,0.00011172,2]
[327228732,1715904679989,-589.2,0.00011172,2]
[327228733,1715904679999,-795.51,0.00011172,2]
[327228734,1715904680008,-500.0,0.00011172,2]
[327228735,1715904680018,-503.69,0.00011172,2]
[327228736,1715904680028,-598.49,0.00011172,2]
[327228737,1715904680037,-1373.26,0.00011172,2]
[327228738,1715904680046,-1371.34,0.00011172,2]
[327228739,1715904680055,-2015.32,0.00011172,2]
[327228740,1715904680065,-837.85,0.00011172,2]
[327228741,1715904680075,-500.0,0.00011172,2]
[327228742,1715904680085,-684.95,0.00011172,2]
[327228743,1715904680094,-684.95,0.00011172,2]
[327228744,1715904680104,-3004.8,0.00011172,2]
[327228745,1715904680113,-628.65,0.00011172,2]
[327228746,1715904680122,-1197.84,0.00011172,2]
[327228747,1715904680132,-500.0,0.00011172,2]
[327228748,1715904680141,-702.57,0.00011172,2]
[327228749,1715904680152,-544.47,0.00011172,2]
[327228750,1715904680162,-500.0,0.00011172,2]
[327228751,1715904680172,-2008.94,0.00011172,2]
[327228752,1715904680181,-948.01,0.00011172,2]
[327228753,1715904680190,-948.01,0.00011172,2]
[327228754,1715904680199,-500.0,0.00011172,2]
[327228755,1715904680209,-635.05,0.00011172,2]
[327228756,1715904680220,-4601.48,0.00011172,2]
[327228757,1715904680229,-1439.96,0.00011172,2]
[327228758,1715904680239,-500.0,0.00011172,2]
[327228759,1715904680248,-1535.96,0.00011172,2]
[327228760,1715904680257,-881.23,0.00011172,2]
[327228761,1715904680266,-500.0,0.00011172,2]
[327228762,1715904680276,-808.85,0.00011172,2]
[327228763,1715904680289,-500.0,0.00011172,2]
[327228764,1715904680298,-500.0,0.00011172,2]
[327228765,1715904680307,-500.0,0.00011172,2]
[327228766,1715904680317,-398.53,0.00011172,2]
[327228767,1715904680326,-1948.51,0.00011172,2]
[327228768,1715904680336,-2869.7,0.00011172,2]
[327228769,1715904680347,-500.0,0.00011172,2]
[327228770,1715904680358,-715.32,0.00011172,2]
[327228771,1715904680368,-657.75,0.00011172,2]
[327228772,1715904680378,-657.75,0.00011172,2]
[327228773,1715904680387,-1080.59,0.00011172,2]
[327228774,1715904680397,-500.0,0.00011172,2]
[327228775,1715904680406,-565.07,0.00011172,2]
[327228776,1715904680415,-373.97275012,0.00011173,2]
[327228777,1715904680425,-3058.56827206,0.00011173,2]
[327228778,1715904680435,-155.0,0.00011173,2]
[327228779,1715904680445,-229.00150754,0.00011173,2]
[327228780,1715904680455,-500.0,0.00011173,2]
[327228781,1715904680464,-500.0,0.00011173,2]
[327228782,1715904680474,-500.0,0.00011173,2]
[327228783,1715904680484,-151.0,0.00011173,2]
[327228784,1715904680493,-151.0,0.00011173,2]
[327228785,1715904680503,-151.0,0.00011173,2]
[327228786,1715904680512,-500.0,0.00011173,2]
[327228787,1715904680522,-160.74,0.00011173,2]
[327228788,1715904680531,-700.17,0.00011173,2]
[327228789,1715904680541,-151.0,0.00011173,2]
[327228790,1715904680550,-500.0,0.00011173,2]
[327228791,1715904680560,-500.0,0.00011173,2]
[327228792,1715904680569,-500.0,0.00011173,2]
[327228793,1715904680579,-402.93749797,0.00011173,2]
[327228794,1715904680588,-500.0,0.00011173,2]
[327228795,1715904680599,-500.0,0.00011173,2]
[327228796,1715904680609,-586.47,0.00011173,2]
[327228797,1715904680618,-521.19,0.00011173,2]
[327228798,1715904680627,-637.27,0.00011173,2]
[327228799,1715904680637,-500.0,0.00011173,2]
[327228800,1715904680646,-500.0,0.00011173,2]